[Event "V Copa Marcel Duchamp 2022"]
[Site "Montevideo"]
[Date "2022.02.14"]
[Round "4.30"]
[White "Siddeley, Hugh"]
[Black "De la Torre, Andres"]
[Result "1-0"]
[ECO "E81"]
[WhiteElo "2000"]
[BlackElo "1680"]
[Annotator "ChessBase"]
[PlyCount "73"]
[EventDate "2022.02.12"]
[EventCountry "URU"]
[SourceTitle "playchess.com"]
[Source "ChessBase"]
[SourceQuality "1"]
[TimeControl "5400+30"]

1. d4 {[%emt 0:00:03]} Nf6 {[%emt 0:00:11]} 2. c4 {[%emt 0:00:04]} g6 {[%emt 0:00:06]} 3. Nc3 {[%emt 0:00:05]} Bg7 {[%emt 0:00:08]} 4. e4 {[%emt 0:00:04]} d6 {[%emt 0:00:07]} 5. f3 {[%emt 0:00:05]} O-O {[%emt 0:00:49]} 6. Bg5 {[%emt 0:00:03]} Nc6 {[%emt 0:01:27]} 7. d5 {[%emt 0:08:19]} Nb4 {[%emt 0:02:05]} 8. Nge2 {[%emt 0:04:57]} h6 {[%emt 0:05:35]} 9. Be3 {[%emt 0:00:23]} e6 {[%emt 0:02:22]} 10. Qd2 {[%emt 0:01:02]} exd5 {[%emt 0:02:50]} 11. cxd5 {[%emt 0:00:12]} Re8 {[%emt 0:01:43]} 12. O-O-O {[%emt 0:07:08]} c5 {[%emt 0:04:21]} 13. a3 {[%emt 0:06:21]} a5 {[%emt 0:10:44]} 14. Kb1 {[%emt 0:07:55]} Bd7 {[%emt 0:11:07]} 15. Bxh6 {[%emt 0:17:02]} Na6 {[%emt 0:18:29]} 16. Ng3 {[%emt 0:02:40]} b5 {[%emt 0:02:23]} 17. Nxb5 {[%emt 0:01:26]} Qb8 {[%emt 0:03:26]} 18. a4 {[%emt 0:00:55]} Nb4 {[%emt 0:01:24]} 19. Bxg7 {[%emt 0:03:37]} Kxg7 {[%emt 0:01:38]} 20. h4 {[%emt 0:00:00]} Re5 {[%emt 0:05:26]} 21. Bc4 {[%emt 0:09:35]} Bxb5 {[%emt 0:04:08]} 22. Bxb5 {[%emt 0:00:27]} Qh8 {[%emt 0:02:17]} 23. Nf1 {[%emt 0:06:12]} Rc8 {[%emt 0:01:18]} 24. b3 {[%emt 0:00:34]} Kf8 {[%emt 0:01:28]} 25. Ne3 {[%emt 0:00:26]} Nxe4 {[%emt 0:03:16]} 26. fxe4 {[%emt 0:00:10]} Rxe4 {[%emt 0:00:09]} 27. Nc4 {[%emt 0:05:50]} Rd4 {[%emt 0:01:15]} 28. Qb2 {[%emt 0:02:52]} Nxd5 {[%emt 0:00:51]} 29. Rxd4 {[%emt 0:02:11]} cxd4 {[%emt 0:00:15]} 30. Ka2 {[%emt 0:06:15]} Nc3+ {[%emt 0:01:56]} 31. Ka1 {[%emt 0:01:41]} d5 {[%emt 0:02:19]} 32. Nxa5 {[%emt 0:00:19]} g5 {[%emt 0:01:45]} 33. h5 {[%emt 0:00:52]} Qh7 {[%emt 0:00:11]} 34. Bc6 {[%emt 0:02:02]} Qe4 {[%emt 0:01:32]} 35. h6 {[%emt 0:00:47]} Ke7 {[%emt 0:02:25]} 36. Qd2 {[%emt 0:00:48]} d3 {[%emt 0:01:31]} 37. Qxc3 {[%emt 0:00:18]} 1-0

[Event "V Copa Marcel Duchamp 2022"]
[Site "Montevideo"]
[Date "2022.02.14"]
[Round "4.31"]
[White "Castagnet, Carlos"]
[Black "Meza, Anahi"]
[Result "0-1"]
[ECO "D70"]
[WhiteElo "1641"]
[BlackElo "1996"]
[Annotator "ChessBase"]
[PlyCount "86"]
[EventDate "2022.02.12"]
[EventCountry "URU"]
[SourceTitle "playchess.com"]
[Source "ChessBase"]
[SourceQuality "1"]
[TimeControl "5400+30"]

1. d4 {[%emt 0:00:21]} Nf6 {[%emt 0:00:08]} 2. c4 {[%emt 0:00:20]} g6 {[%emt 0:00:12]} 3. Nf3 {[%emt 0:00:31]} Bg7 {[%emt 0:00:08]} 4. Nc3 {[%emt 0:00:24]} O-O {[%emt 0:00:05]} 5. Bf4 {[%emt 0:01:37]} d6 {[%emt 0:01:34]} 6. Qd2 {[%emt 0:00:49]} Re8 {[%emt 0:04:44]} 7. Bh6 {[%emt 0:04:43]} Bh8 {[%emt 0:00:27]} 8. e4 {[%emt 0:00:07]} c5 {[%emt 0:03:46]} 9. d5 {[%emt 0:10:23]} e6 {[%emt 0:01:25]} 10. Be2 {[%emt 0:00:21]} exd5 {[%emt 0:01:25]} 11. exd5 {[%emt 0:01:01]} Bf5 {[%emt 0:02:59]} 12. O-O {[%emt 0:00:42]} Nbd7 {[%emt 0:02:42]} 13. Rfe1 {[%emt 0:02:31]} Ng4 {[%emt 0:11:37]} 14. Bf4 {[%emt 0:03:32]} Nge5 {[%emt 0:00:20]} 15. Nb5 {[%emt 0:05:31]} Nxf3+ {[%emt 0:02:31]} 16. Bxf3 {[%emt 0:03:22]} Ne5 {[%emt 0:00:25]} 17. Be2 {[%emt 0:02:16]} Qb6 18. h3 {[%emt 0:00:48]} Rad8 {[%emt 0:05:44]} 19. g4 {[%emt 0:00:30]} Bc8 20. Kg2 f5 {[%emt 0:09:50]} 21. g5 {[%emt 0:11:42]} a6 {[%emt 0:00:25]} 22. Nc3 {[%emt 0:01:10]} Qb4 {[%emt 0:00:23]} 23. Bxe5 {[%emt 0:08:05]} Bxe5 {[%emt 0:03:29]} 24. f4 {[%emt 0:00:08]} Bg7 {[%emt 0:01:12]} 25. Bd3 {[%emt 0:00:29]} Bd7 {[%emt 0:01:02]} 26. Rac1 {[%emt 0:06:29]} b5 {[%emt 0:01:59]} 27. b3 {[%emt 0:00:03]} Rxe1 {[%emt 0:02:17]} 28. Qxe1 {[%emt 0:00:04]} Re8 {[%emt 0:00:20]} 29. Qd2 {[%emt 0:00:07]} Bd4 {[%emt 0:03:37]} 30. Nb1 {[%emt 0:01:00]} Qxd2+ {[%emt 0:01:12]} 31. Nxd2 {[%emt 0:00:03]} Be3 {[%emt 0:00:43]} 32. Rc2 {[%emt 0:03:03]} Bxf4 {[%emt 0:00:12]} 33. Nf3 {[%emt 0:01:49]} Kf7 {[%emt 0:06:13]} 34. Re2 {[%emt 0:01:35]} Rb8 {[%emt 0:02:06]} 35. h4 {[%emt 0:00:50]} bxc4 {[%emt 0:00:24]} 36. Bxc4 {[%emt 0:01:11]} Bb5 {[%emt 0:01:17]} 37. Rc2 {[%emt 0:05:34]} Re8 {[%emt 0:01:04]} 38. a4 {[%emt 0:03:06]} Bxc4 {[%emt 0:00:08]} 39. Rxc4 {[%emt 0:00:02]} Re2+ {[%emt 0:02:06]} 40. Kf1 {[%emt 0:00:46]} Re4 {[%emt 0:00:05]} 41. Kg2 {[%emt 0:01:14]} Be5 {[%emt 0:03:52]} 42. Rxe4 {[%emt 0:00:04]} fxe4 {[%emt 0:00:07]} 43. Nxe5+ {[%emt 0:00:02]} dxe5 {[%emt 0:00:02]} 0-1

[Event "V Copa Marcel Duchamp 2022"]
[Site "Montevideo"]
[Date "2022.02.14"]
[Round "4.32"]
[White "Moccero, Eduardo"]
[Black "Amaral, Francisco"]
[Result "1/2-1/2"]
[ECO "D04"]
[WhiteElo "1919"]
[BlackElo "1672"]
[Annotator "NA"]
[PlyCount "70"]
[EventDate "2022.02.12"]
[EventCountry "URU"]
[SourceTitle "playchess.com"]
[Source "ChessBase"]
[SourceQuality "1"]
[TimeControl "5400+30"]

1. d4 {[%emt 0:00:04]} Nf6 {[%emt 0:00:32]} 2. Nf3 {[%emt 0:00:08]} d5 {[%emt 0:00:11]} 3. e3 {[%emt 0:00:06]} c5 {[%emt 0:00:30]} 4. c3 {[%emt 0:00:26]} Nbd7 {[%emt 0:00:48]} 5. Bd3 {[%emt 0:00:50]} Qc7 {[%emt 0:00:15]} 6. Nbd2 {[%emt 0:00:36]} e5 {[%emt 0:00:16]} 7. dxe5 {[%emt 0:00:24]} Nxe5 {[%emt 0:00:10]} 8. Nxe5 {[%emt 0:00:19]} Qxe5 {[%emt 0:00:15]} 9. Nf3 {[%emt 0:00:52]} Qc7 {[%emt 0:00:22]} 10. Bb5+ {[%emt 0:00:59]} Bd7 {[%emt 0:00:37]} 11. Bxd7+ {[%emt 0:02:12]} Qxd7 {[%emt 0:00:12]} 12. O-O {[%emt 0:00:07]} Bd6 {[%emt 0:01:37]} 13. b3 {[%emt 0:01:51]} O-O {[%emt 0:02:17]} 14. Bb2 {[%emt 0:00:17]} c4 {[%emt 0:01:02]} 15. Qe2 {[%emt 0:03:28]} Rac8 {[%emt 0:02:34]} 16. Rfd1 {[%emt 0:01:56]} Qc7 {[%emt 0:01:43]} 17. h3 {[%emt 0:01:25]} Rfd8 {[%emt 0:00:34]} 18. Nd4 {[%emt 0:03:24]} a6 {[%emt 0:00:18]} 19. Nf5 {[%emt 0:10:03]} Bf8 {[%emt 0:02:34]} 20. Qf3 {[%emt 0:04:16]} g6 {[%emt 0:04:34]} 21. Ng3 {[%emt 0:03:16]} Bg7 {[%emt 0:00:15]} 22. e4 {[%emt 0:03:42]} Nxe4 {[%emt 0:23:01]} 23. Nxe4 {[%emt 0:00:22]} dxe4 {[%emt 0:00:08]} 24. Qxe4 {[%emt 0:00:58]} Qb6 {[%emt 0:01:00]} 25. Rxd8+ {[%emt 0:02:01]} Rxd8 {[%emt 0:01:48]} 26. Qc2 {[%emt 0:08:19]} cxb3 {[%emt 0:05:15]} 27. axb3 Qd6 {[%emt 0:07:28]} 28. Re1 {[%emt 0:02:46]} h6 {[%emt 0:00:59]} 29. c4 {[%emt 0:05:12]} Bd4 {[%emt 0:09:07]} 30. Bxd4 {[%emt 0:02:52]} Qxd4 {[%emt 0:00:10]} 31. Re7 {[%emt 0:03:32]} Qf4 {[%emt 0:03:50]} 32. Re3 {[%emt 0:05:30]} Qd6 {[%emt 0:01:46]} 33. Qc3 {[%emt 0:03:02]} b6 {[%emt 0:02:59]} 34. h4 {[%emt 0:06:15]} h5 {[%emt 0:02:43]} 35. g3 {[%emt 0:00:17]} Qd4 {[%emt 0:01:38]} 1/2-1/2

[Event "V Copa Marcel Duchamp 2022"]
[Site "Montevideo"]
[Date "2022.02.14"]
[Round "4.33"]
[White "Manteiga, Franco"]
[Black "Martinez Alvarez, Mateo"]
[Result "1-0"]
[ECO "D10"]
[WhiteElo "1915"]
[BlackElo "1093"]
[Annotator "NA"]
[PlyCount "85"]
[EventDate "2022.02.12"]
[EventCountry "URU"]
[SourceTitle "playchess.com"]
[Source "ChessBase"]
[SourceQuality "1"]
[TimeControl "5400+30"]

1. d4 c6 2. c4 d5 3. cxd5 cxd5 4. Bf4 Nf6 5. Nc3 e6 6. e3 Bd6 7. Bxd6 Qxd6 8. Bd3 {[%emt 0:03:05]} Nc6 {[%emt 0:10:53]} 9. f4 {[%emt 0:00:06]} a6 {[%emt 0:01:33]} 10. Nf3 {[%emt 0:01:58]} b5 {[%emt 0:01:29]} 11. O-O {[%emt 0:02:41]} O-O {[%emt 0:01:07]} 12. Ne5 {[%emt 0:01:50]} Bb7 {[%emt 0:01:31]} 13. Rf3 {[%emt 0:02:00]} Ne7 {[%emt 0:01:35]} 14. Rh3 {[%emt 0:03:40]} h6 {[%emt 0:18:02]} 15. g4 {[%emt 0:01:05]} Ne4 {[%emt 0:00:10]} 16. g5 {[%emt 0:19:48]} Nf5 {[%emt 0:00:24]} 17. Qg4 {[%emt 0:14:49]} Kh7 {[%emt 0:04:46]} 18. Nxf7 {[%emt 0:07:14]} Rxf7 {[%emt 0:00:09]} 19. g6+ {[%emt 0:00:07]} Kg8 {[%emt 0:00:11]} 20. gxf7+ {[%emt 0:00:04]} Kxf7 {[%emt 0:00:18]} 21. Qe2 {[%emt 0:08:25]} Rg8 {[%emt 0:01:38]} 22. Kh1 {[%emt 0:02:41]} g5 {[%emt 0:00:38]} 23. Qh5+ {[%emt 0:11:04]} Ke7 {[%emt 0:01:33]} 24. Bxe4 {[%emt 0:00:37]} dxe4 {[%emt 0:04:58]} 25. Rg1 {[%emt 0:08:31]} e5 {[%emt 0:14:38]} 26. fxe5 {[%emt 0:03:38]} Qe6 {[%emt 0:14:40]} 27. Ne2 {[%emt 0:01:39]} Rg7 {[%emt 0:04:25]} 28. Rc1 {[%emt 0:03:59]} Kd8 {[%emt 0:01:48]} 29. Ng3 {[%emt 0:01:03]} Nh4 {[%emt 0:11:09]} 30. Rxh4 {[%emt 0:00:36]} gxh4 {[%emt 0:00:08]} 31. Qxh4+ {[%emt 0:00:10]} Kd7 {[%emt 0:00:54]} 32. Qf6 {[%emt 0:00:45]} Rf7 {[%emt 0:01:33]} 33. Qxe6+ {[%emt 0:00:25]} Kxe6 34. Rf1 Rxf1+ 35. Nxf1 b4 {[%emt 0:04:29]} 36. Kg2 {[%emt 0:01:25]} Bd5 {[%emt 0:00:42]} 37. a3 {[%emt 0:01:37]} bxa3 {[%emt 0:01:20]} 38. bxa3 {[%emt 0:00:04]} Kd7 39. Nd2 Kc6 40. Nb1 a5 41. Nc3 Bf7 42. Kg3 Bg6 43. Kf4 1-0

[Event "V Copa Marcel Duchamp 2022"]
[Site "Montevideo"]
[Date "2022.02.15"]
[Round "5.11"]
[White "Muniz, Rafael"]
[Black "Vitoux, Colomban"]
[Result "0-1"]
[ECO "B02"]
[WhiteElo "2194"]
[BlackElo "2372"]
[Annotator "ChessBase"]
[PlyCount "70"]
[EventDate "2022.02.12"]
[EventCountry "URU"]
[SourceTitle "playchess.com"]
[Source "ChessBase"]
[SourceQuality "1"]
[TimeControl "5400+30"]

1. e4 {[%emt 0:05:43]} Nf6 {[%emt 0:01:09]} 2. e5 {[%emt 0:00:04]} Ng8 {[%emt 0:00:12]} 3. Nf3 {[%emt 0:00:41]} d6 {[%emt 0:00:05]} 4. d4 {[%emt 0:01:15]} Bg4 {[%emt 0:00:07]} 5. Be2 {[%emt 0:01:27]} e6 {[%emt 0:00:06]} 6. O-O {[%emt 0:01:18]} Nc6 {[%emt 0:00:05]} 7. exd6 {[%emt 0:00:55]} Bxd6 {[%emt 0:00:11]} 8. Be3 {[%emt 0:02:50]} Nf6 {[%emt 0:00:08]} 9. c4 {[%emt 0:00:26]} O-O {[%emt 0:00:11]} 10. Nc3 {[%emt 0:01:05]} Qd7 {[%emt 0:07:10]} 11. h3 {[%emt 0:02:52]} Bh5 {[%emt 0:06:47]} 12. a3 {[%emt 0:04:27]} Rfd8 {[%emt 0:04:00]} 13. d5 {[%emt 0:07:09]} exd5 {[%emt 0:03:01]} 14. Nxd5 {[%emt 0:04:47]} Nxd5 {[%emt 0:03:36]} 15. Qxd5 {[%emt 0:01:41]} Bg6 {[%emt 0:01:19]} 16. Rfe1 {[%emt 0:07:39]} Qe8 {[%emt 0:03:45]} 17. Qg5 {[%emt 0:08:08]} h6 {[%emt 0:04:46]} 18. Qg4 {[%emt 0:06:23]} Ne5 {[%emt 0:04:29]} 19. Qh4 {[%emt 0:04:49]} Nxf3+ {[%emt 0:10:47]} 20. Bxf3 {[%emt 0:00:13]} Qe5 {[%emt 0:00:40]} 21. g3 {[%emt 0:00:31]} Qxb2 {[%emt 0:00:34]} 22. a4 {[%emt 0:05:27]} Be5 {[%emt 0:17:02]} 23. Rad1 {[%emt 0:01:54]} Bf6 {[%emt 0:06:01]} 24. Qf4 {[%emt 0:05:47]} c6 {[%emt 0:00:55]} 25. Rxd8+ {[%emt 0:03:21]} Rxd8 {[%emt 0:01:25]} 26. Bxa7 {[%emt 0:02:03]} Qb4 {[%emt 0:00:16]} 27. Re2 {[%emt 0:02:53]} Ra8 {[%emt 0:02:33]} 28. Qc7 {[%emt 0:04:36]} Kh7 {[%emt 0:04:47]} 29. a5 {[%emt 0:06:13]} Bd3 {[%emt 0:05:18]} 30. Re3 {[%emt 0:01:15]} Qb1+ {[%emt 0:05:09]} 31. Kh2 {[%emt 0:01:31]} Rxa7 {[%emt 0:03:09]} 32. Qb8 {[%emt 0:01:55]} Bd4 {[%emt 0:01:01]} 33. Re8 {[%emt 0:02:17]} g5 {[%emt 0:03:20]} 34. Qd8 {[%emt 0:01:54]} Qb2 {[%emt 0:00:37]} 35. Be2 {[%emt 0:01:45]} Bxe2 {[%emt 0:01:13]} 0-1

[Event "V Copa Marcel Duchamp 2022"]
[Site "Montevideo"]
[Date "2022.02.15"]
[Round "5.12"]
[White "Carvalho, Guillermo"]
[Black "Menna Barreto, Felipe Kubiaki"]
[Result "0-1"]
[ECO "E10"]
[WhiteElo "2171"]
[BlackElo "2351"]
[Annotator "ChessBase"]
[PlyCount "94"]
[EventDate "2022.02.12"]
[EventCountry "URU"]
[SourceTitle "playchess.com"]
[Source "ChessBase"]
[SourceQuality "1"]
[TimeControl "5400+30"]

1. c4 {[%emt 0:00:11]} e6 {[%emt 0:00:13]} 2. d4 {[%emt 0:03:16]} Nf6 {[%emt 0:00:48]} 3. Nf3 {[%emt 0:00:30]} c5 {[%emt 0:00:25]} 4. e3 {[%emt 0:00:14]} a6 {[%emt 0:05:34]} 5. Nc3 {[%emt 0:01:55]} d5 {[%emt 0:01:11]} 6. a3 {[%emt 0:00:33]} Nc6 {[%emt 0:02:47]} 7. Bd3 {[%emt 0:00:21]} dxc4 {[%emt 0:01:06]} 8. Bxc4 {[%emt 0:00:08]} b5 {[%emt 0:00:29]} 9. Bd3 {[%emt 0:01:41]} Bb7 {[%emt 0:01:44]} 10. O-O {[%emt 0:01:20]} Rc8 {[%emt 0:18:28]} 11. Re1 {[%emt 0:35:58]} Be7 {[%emt 0:04:03]} 12. Ne4 {[%emt 0:02:21]} c4 {[%emt 0:11:49]} 13. Bc2 {[%emt 0:00:45]} Nxe4 {[%emt 0:00:38]} 14. Bxe4 {[%emt 0:00:12]} O-O {[%emt 0:00:11]} 15. Ne5 {[%emt 0:06:08]} Qc7 {[%emt 0:07:19]} 16. Nxc6 {[%emt 0:07:18]} Bxc6 {[%emt 0:00:19]} 17. Bxc6 {[%emt 0:00:47]} Qxc6 {[%emt 0:00:03]} 18. Bd2 {[%emt 0:00:39]} Rfd8 {[%emt 0:02:49]} 19. Ba5 {[%emt 0:01:32]} Rd7 {[%emt 0:02:02]} 20. Qf3 {[%emt 0:02:07]} Qxf3 {[%emt 0:06:53]} 21. gxf3 {[%emt 0:00:06]} Bd8 {[%emt 0:01:09]} 22. Bd2 {[%emt 0:05:00]} e5 {[%emt 0:03:29]} 23. Bc3 {[%emt 0:00:24]} exd4 {[%emt 0:00:19]} 24. Bxd4 {[%emt 0:00:34]} Bf6 {[%emt 0:00:23]} 25. Bxf6 {[%emt 0:03:40]} gxf6 {[%emt 0:00:14]} 26. Re2 {[%emt 0:00:21]} Rcd8 {[%emt 0:01:12]} 27. Kf1 {[%emt 0:00:29]} Rd1+ {[%emt 0:07:53]} 28. Rxd1 {[%emt 0:03:23]} Rxd1+ {[%emt 0:00:03]} 29. Kg2 Kf8 {[%emt 0:01:00]} 30. Kg3 {[%emt 0:04:11]} Ke7 {[%emt 0:00:50]} 31. Kf4 {[%emt 0:00:09]} Ke6 {[%emt 0:01:04]} 32. Rc2 {[%emt 0:00:20]} Rh1 {[%emt 0:02:54]} 33. a4 {[%emt 0:00:58]} Rxh2 {[%emt 0:00:33]} 34. axb5 {[%emt 0:00:08]} axb5 {[%emt 0:00:03]} 35. Ke4 {[%emt 0:00:41]} Rh5 {[%emt 0:01:06]} 36. f4 {[%emt 0:04:04]} Rc5 {[%emt 0:03:14]} 37. f5+ {[%emt 0:00:53]} Rxf5 {[%emt 0:00:41]} 38. f4 {[%emt 0:00:10]} Rc5 {[%emt 0:00:41]} 39. Rh2 {[%emt 0:02:52]} f5+ {[%emt 0:00:34]} 40. Kf3 {[%emt 0:01:07]} b4 {[%emt 0:00:38]} 41. Ke2 {[%emt 0:00:26]} c3 {[%emt 0:05:50]} 42. bxc3 {[%emt 0:00:19]} bxc3 {[%emt 0:00:02]} 43. Kd1 {[%emt 0:00:14]} c2+ {[%emt 0:00:06]} 44. Kc1 {[%emt 0:00:06]} Kd5 {[%emt 0:02:45]} 45. Rxh7 {[%emt 0:00:26]} Ke4 {[%emt 0:00:22]} 46. Rh1 {[%emt 0:06:01]} Kxe3 {[%emt 0:00:33]} 47. Re1+ {[%emt 0:00:31]} Kxf4 {[%emt 0:00:17]} 0-1

[Event "V Copa Marcel Duchamp 2022"]
[Site "Montevideo"]
[Date "2022.02.15"]
[Round "5.16"]
[White "Elena, Eduardo"]
[Black "Spata, German"]
[Result "0-1"]
[ECO "B96"]
[WhiteElo "1712"]
[BlackElo "2300"]
[Annotator "ChessBase"]
[PlyCount "56"]
[EventDate "2022.02.12"]
[EventCountry "URU"]
[SourceTitle "playchess.com"]
[Source "ChessBase"]
[SourceQuality "1"]
[TimeControl "5400+30"]

1. e4 {[%emt 0:02:02]} c5 {[%emt 0:00:35]} 2. Nf3 {[%emt 0:00:06]} d6 {[%emt 0:00:14]} 3. d4 {[%emt 0:00:05]} cxd4 {[%emt 0:00:06]} 4. Nxd4 {[%emt 0:00:04]} Nf6 {[%emt 0:00:05]} 5. Nc3 {[%emt 0:00:05]} a6 {[%emt 0:00:05]} 6. Bg5 {[%emt 0:00:10]} e6 {[%emt 0:00:17]} 7. f4 {[%emt 0:01:11]} h6 {[%emt 0:00:30]} 8. Bxf6 {[%emt 0:02:17]} Qxf6 {[%emt 0:00:03]} 9. Qd2 {[%emt 0:00:49]} g5 {[%emt 0:00:16]} 10. fxg5 {[%emt 0:02:20]} Qxg5 {[%emt 0:00:44]} 11. Qd3 {[%emt 0:06:22]} Nd7 {[%emt 0:06:36]} 12. Nf3 {[%emt 0:01:48]} Qc5 {[%emt 0:04:31]} 13. O-O-O {[%emt 0:12:16]} b5 {[%emt 0:00:11]} 14. g3 {[%emt 0:09:52]} Bb7 {[%emt 0:01:47]} 15. Bg2 {[%emt 0:01:16]} O-O-O {[%emt 0:01:26]} 16. Rhf1 {[%emt 0:01:43]} Be7 {[%emt 0:02:50]} 17. Rd2 {[%emt 0:02:45]} Ne5 {[%emt 0:06:12]} 18. Qe2 {[%emt 0:04:22]} Nxf3 {[%emt 0:07:50]} 19. Qxf3 {[%emt 0:04:44]} Bg5 {[%emt 0:02:00]} 20. Qxf7 {[%emt 0:01:06]} Rde8 {[%emt 0:10:55]} 21. Kd1 {[%emt 0:07:04]} Bxd2 {[%emt 0:05:02]} 22. Kxd2 {[%emt 0:00:09]} Rhf8 {[%emt 0:05:15]} 23. Qg6 {[%emt 0:03:53]} Qd4+ {[%emt 0:07:41]} 24. Ke2 {[%emt 0:01:00]} Bc6 {[%emt 0:07:21]} 25. Rxf8 {[%emt 0:07:30]} Rxf8 {[%emt 0:01:54]} 26. Nd1 {[%emt 0:00:13]} b4 {[%emt 0:02:08]} 27. Bh3 {[%emt 0:05:51]} Bb5+ {[%emt 0:02:10]} 28. Ke1 {[%emt 0:02:08]} Qg1+ {[%emt 0:00:08]} 0-1

[Event "V Copa Marcel Duchamp 2022"]
[Site "Montevideo"]
[Date "2022.02.15"]
[Round "5.17"]
[White "Coppola, Claudio"]
[Black "Garcia, Luis E."]
[Result "1-0"]
[ECO "A58"]
[WhiteElo "2285"]
[BlackElo "2192"]
[Annotator "ChessBase"]
[PlyCount "59"]
[EventDate "2022.02.12"]
[EventCountry "URU"]
[SourceTitle "playchess.com"]
[Source "ChessBase"]
[SourceQuality "1"]
[TimeControl "5400+30"]

1. d4 {[%emt 0:18:20]} Nf6 {[%emt 0:00:08]} 2. c4 {[%emt 0:00:17]} c5 {[%emt 0:00:11]} 3. d5 {[%emt 0:00:04]} b5 {[%emt 0:00:10]} 4. cxb5 {[%emt 0:00:04]} a6 {[%emt 0:00:11]} 5. bxa6 {[%emt 0:00:03]} Bxa6 {[%emt 0:00:08]} 6. Nc3 {[%emt 0:00:12]} d6 {[%emt 0:00:17]} 7. Nf3 {[%emt 0:00:16]} g6 {[%emt 0:00:06]} 8. e4 {[%emt 0:00:04]} Bxf1 {[%emt 0:00:12]} 9. Kxf1 {[%emt 0:00:02]} Bg7 {[%emt 0:00:15]} 10. g3 {[%emt 0:00:03]} Nbd7 {[%emt 0:00:28]} 11. Kg2 {[%emt 0:00:04]} O-O {[%emt 0:00:08]} 12. a4 {[%emt 0:00:13]} Ng4 {[%emt 0:01:14]} 13. Qc2 {[%emt 0:05:53]} Qa5 {[%emt 0:02:02]} 14. Bg5 {[%emt 0:04:40]} Rfe8 {[%emt 0:08:06]} 15. Nb5 {[%emt 0:02:14]} Rab8 {[%emt 0:09:07]} 16. Rhe1 {[%emt 0:17:37]} Qb6 {[%emt 0:10:22]} 17. h3 Nge5 {[%emt 0:04:47]} 18. Nd2 {[%emt 0:03:23]} h6 {[%emt 0:06:30]} 19. Be3 {[%emt 0:00:30]} g5 {[%emt 0:00:43]} 20. f4 {[%emt 0:07:00]} gxf4 {[%emt 0:01:48]} 21. gxf4 {[%emt 0:00:03]} Ng6 {[%emt 0:00:45]} 22. Nc4 {[%emt 0:00:12]} Qb7 {[%emt 0:09:17]} 23. Na5 {[%emt 0:04:52]} Qa8 {[%emt 0:02:25]} 24. Nc6 {[%emt 0:07:56]} Rb7 {[%emt 0:02:35]} 25. Rg1 {[%emt 0:03:10]} Kh8 {[%emt 0:02:54]} 26. Kh1 {[%emt 0:01:54]} Nb6 {[%emt 0:08:53]} 27. f5 {[%emt 0:02:49]} Ne5 {[%emt 0:07:24]} 28. Nxe5 {[%emt 0:02:20]} Bxe5 {[%emt 0:06:06]} 29. Bxh6 {[%emt 0:00:26]} Rg8 {[%emt 0:03:11]} 30. Qe2 1-0

[Event "V Copa Marcel Duchamp 2022"]
[Site "Montevideo"]
[Date "2022.02.15"]
[Round "5.20"]
[White "Nejanky, Maisa"]
[Black "Curi, Gabriel"]
[Result "0-1"]
[ECO "B76"]
[WhiteElo "1948"]
[BlackElo "2205"]
[Annotator "ChessBase"]
[PlyCount "48"]
[EventDate "2022.02.12"]
[EventCountry "URU"]
[SourceTitle "playchess.com"]
[Source "ChessBase"]
[SourceQuality "1"]
[TimeControl "5400+30"]

1. e4 {[%emt 0:04:39]} c5 {[%emt 0:00:04]} 2. Nf3 {[%emt 0:00:15]} d6 {[%emt 0:00:06]} 3. d4 {[%emt 0:00:05]} cxd4 {[%emt 0:00:05]} 4. Nxd4 {[%emt 0:00:07]} Nf6 {[%emt 0:00:04]} 5. Nc3 {[%emt 0:00:05]} g6 {[%emt 0:00:05]} 6. Be3 {[%emt 0:02:54]} Bg7 {[%emt 0:00:07]} 7. f3 {[%emt 0:01:05]} O-O {[%emt 0:00:17]} 8. Qd2 {[%emt 0:00:05]} Nc6 {[%emt 0:00:06]} 9. O-O-O {[%emt 0:07:18]} d5 {[%emt 0:00:48]} 10. Nxc6 {[%emt 0:11:56]} bxc6 {[%emt 0:01:11]} 11. exd5 {[%emt 0:00:11]} Nxd5 {[%emt 0:00:43]} 12. Nxd5 {[%emt 0:02:44]} cxd5 {[%emt 0:00:07]} 13. Qxd5 {[%emt 0:00:28]} Qc7 {[%emt 0:00:07]} 14. Qc5 {[%emt 0:22:29]} Qb7 {[%emt 0:00:08]} 15. Qa3 {[%emt 0:09:08]} Bf5 {[%emt 0:43:35]} 16. Kb1 {[%emt 0:31:29]} Rab8 {[%emt 0:12:57]} 17. Bc1 {[%emt 0:00:11]} Rfc8 {[%emt 0:03:47]} 18. Bd3 {[%emt 0:02:36]} Rc3 {[%emt 0:05:23]} 19. Qa5 {[%emt 0:01:18]} Bxd3 {[%emt 0:01:31]} 20. Rxd3 {[%emt 0:00:45]} Rxd3 {[%emt 0:00:07]} 21. cxd3 {[%emt 0:00:28]} Bxb2 {[%emt 0:00:12]} 22. Kc2 {[%emt 0:00:33]} Rc8+ {[%emt 0:00:29]} 23. Kd2 {[%emt 0:00:24]} Bxc1+ {[%emt 0:00:38]} 24. Rxc1 {[%emt 0:00:37]} Qb2+ {[%emt 0:00:10]} 0-1

[Event "V Copa Marcel Duchamp 2022"]
[Site "Montevideo"]
[Date "2022.02.15"]
[Round "5.21"]
[White "Pichuaga, Juan Pablo"]
[Black "Manteiga, Franco"]
[Result "1/2-1/2"]
[ECO "B24"]
[WhiteElo "2030"]
[BlackElo "1915"]
[Annotator "ChessBase"]
[PlyCount "28"]
[EventDate "2022.02.12"]
[EventCountry "URU"]
[SourceTitle "playchess.com"]
[Source "ChessBase"]
[SourceQuality "1"]
[TimeControl "5400+30"]

1. e4 c5 2. Nc3 Nc6 3. Bb5 Nd4 4. Bc4 e6 5. d3 a6 6. a4 Nf6 7. e5 d5 8. exd6 Bxd6 9. Nf3 b6 10. Nxd4 cxd4 11. Ne4 Nxe4 12. dxe4 Bb7 13. Bd3 Qc7 14. h3 Bc6 1/2-1/2

[Event "V Copa Marcel Duchamp 2022"]
[Site "Montevideo"]
[Date "2022.02.15"]
[Round "5.22"]
[White "Popov, Mark"]
[Black "Siddeley, Hugh"]
[Result "1/2-1/2"]
[ECO "A01"]
[WhiteElo "1758"]
[BlackElo "2000"]
[Annotator "ChessBase"]
[PlyCount "43"]
[EventDate "2022.02.12"]
[EventCountry "URU"]
[SourceTitle "playchess.com"]
[Source "ChessBase"]
[SourceQuality "1"]
[TimeControl "5400+30"]

1. b3 Nf6 {[%emt 0:03:58]} 2. Bb2 {[%emt 0:06:07]} g6 {[%emt 0:00:21]} 3. Nf3 {[%emt 0:00:25]} Bg7 {[%emt 0:00:07]} 4. e4 {[%emt 0:01:29]} d6 {[%emt 0:00:52]} 5. d3 {[%emt 0:10:45]} O-O {[%emt 0:04:54]} 6. Nc3 {[%emt 0:00:35]} c5 {[%emt 0:04:58]} 7. Be2 {[%emt 0:03:08]} Nc6 {[%emt 0:04:51]} 8. h3 {[%emt 0:03:45]} a6 {[%emt 0:01:21]} 9. Qd2 {[%emt 0:02:50]} b5 {[%emt 0:00:50]} 10. Nd5 {[%emt 0:02:10]} Nxe4 {[%emt 0:03:27]} 11. Qc1 {[%emt 0:06:52]} Qa5+ {[%emt 0:03:48]} 12. b4 {[%emt 0:03:26]} Nxb4 {[%emt 0:01:09]} 13. Nxe7+ {[%emt 0:03:50]} Kh8 {[%emt 0:00:01]} 14. Bxg7+ {[%emt 0:00:39]} Kxg7 {[%emt 0:00:02]} 15. c3 {[%emt 0:04:09]} Nxd3+ {[%emt 0:11:19]} 16. Bxd3 {[%emt 0:00:12]} Bb7 {[%emt 0:00:48]} 17. Nf5+ {[%emt 0:05:49]} gxf5 {[%emt 0:14:11]} 18. Bxe4 {[%emt 0:00:31]} Bxe4 {[%emt 0:00:37]} 19. Qg5+ {[%emt 0:00:59]} Kh8 {[%emt 0:00:07]} 20. Qf6+ {[%emt 0:01:10]} Kg8 {[%emt 0:00:01]} 21. Qg5+ {[%emt 0:01:25]} Kh8 {[%emt 0:00:01]} 22. Qf6+ 1/2-1/2